bitfinex/quotes_SOLUSD_20241107
["timestamp","ask_amount","ask_price","bid_price","bid_amount"]
[1731005051520,35.713703,196.44,196.4,17.88342973]
[1731005051836,15.3574,196.44,196.4,17.88342973]
[1731005052432,15.3574,196.44,196.39,17.88342973]
[1731005053650,15.3574,196.44,196.31,0.12549]
[1731005053651,15.3574,196.44,196.4,17.88342973]
[1731005053950,15.3574,196.44,196.39,17.88342973]
[1731005055846,14.01162938,196.44,196.39,17.88342973]
[1731005056233,31.89505911,196.44,196.38,17.88342973]
[1731005056438,14.01162938,196.44,196.38,17.88342973]
[1731005056745,14.01162938,196.44,196.39,17.88342973]
[1731005061242,31.89505911,196.44,196.38,17.88342973]
[1731005062230,14.01162938,196.44,196.38,17.88342973]
[1731005062433,31.89505911,196.44,196.38,17.88342973]
[1731005063151,17.883429,196.46,196.42,17.88342973]
[1731005063350,6.6177,196.47,196.42,17.88342973]
[1731005063656,6.6177,196.47,196.41,17.88342973]
[1731005064440,24.50112973,196.47,196.41,17.88342973]
[1731005065353,6.6177,196.47,196.41,17.88342973]
[1731005066359,6.6177,196.47,196.33,7.33085648]
[1731005066360,6.6177,196.47,196.43,17.88342973]
[1731005066654,34.27892973,196.49,196.43,17.88342973]
[1731005066846,52.16235873,196.49,196.43,17.88342973]
[1731005067049,34.278929,196.49,196.43,17.88342973]
[1731005067259,16.3955,196.49,196.44,17.88342973]
[1731005067836,16.3955,196.49,196.45,17.88342973]
[1731005068137,16.3955,196.49,196.44,17.88342973]
[1731005069040,16.3955,196.49,196.45,17.88342973]
[1731005069241,16.3955,196.49,196.44,17.88342973]
[1731005069750,16.3955,196.49,196.43,17.88342973]
[1731005070066,17.88342973,196.48,196.42,17.88342973]
[1731005070373,34.27892973,196.49,196.42,17.88342973]
[1731005070545,16.3955,196.49,196.43,17.88342973]
[1731005070947,16.3955,196.49,196.46,17.88342973]
[1731005071346,16.3955,196.49,196.45,11.42257851]
[1731005071670,0.5702591,196.5,196.41,0.12549]
[1731005071864,0.5702591,196.5,196.48,11.42257851]
[1731005072043,0.5702591,196.5,196.47,11.42257851]
[1731005072453,0.5702591,196.5,196.48,11.42257851]
[1731005072647,0.5702591,196.5,196.37,25.332671]
[1731005072867,11.42257851,196.49,196.42,11.42257851]
[1731005073455,11.99283761,196.5,196.43,11.42257851]
[1731005074391,0.5702591,196.5,196.44,11.42257851]
[1731005074547,0.5702591,196.5,196.47,11.42257851]
[1731005074858,0.5702591,196.5,196.48,11.42257851]
[1731005075064,0.5702591,196.5,196.47,11.42257851]
[1731005075459,0.5702591,196.5,196.48,11.42257851]
[1731005075645,0.5702591,196.5,196.41,20.0]
[1731005075845,0.5702591,196.5,196.47,11.42257851]
[1731005076743,0.5702591,196.5,196.48,11.42257851]
[1731005077248,0.5702591,196.5,196.38,20.12549]
[1731005077460,0.5702591,196.5,196.47,17.84480673]
[1731005078767,0.5702591,196.5,196.49,17.84480673]
[1731005078943,0.5702591,196.5,196.41,0.12549]
[1731005079143,0.5702591,196.5,196.49,17.84480673]
[1731005081748,0.5702591,196.5,196.49,55.81510346]
[1731005082954,0.5702591,196.5,196.49,0.12549]
[1731005083153,0.5702591,196.5,196.49,37.84480673]
[1731005083772,0.5702591,196.5,196.49,37.97029673]
[1731005084479,0.5702591,196.5,195.4,46.9659726]
[1731005084480,40.31846583,196.5,196.43,17.84480673]
[1731005084655,16.3650591,196.5,196.44,17.84480673]
[1731005085673,17.84480673,196.48,196.34,22.0755]
[1731005085881,34.20986583,196.5,196.43,17.84480673]
[1731005086055,16.3650591,196.5,196.45,17.84480673]
[1731005086560,0.5702591,196.5,196.45,17.84480673]
[1731005087061,0.5702591,196.5,196.44,17.84480673]
[1731005087760,17.84480673,196.48,196.41,17.84480673]
[1731005087956,0.5702591,196.5,196.44,17.84480673]
[1731005088150,0.5702591,196.5,196.34,22.0755]
[1731005088151,0.5702591,196.5,196.46,17.84480673]
[1731005088366,0.5702591,196.5,196.45,17.84480673]
[1731005089774,0.5702591,196.5,196.46,17.84480673]
[1731005090284,0.5702591,196.5,196.48,17.84480673]
[1731005090591,0.5702591,196.5,196.49,17.84480673]
[1731005091281,0.5702591,196.5,196.49,61.74718073]
[1731005093170,0.5702591,196.5,196.49,79.59198746]
[1731005094679,39.13770673,196.66,196.5,44.002374]
[1731005094875,18.41506583,196.69,196.62,17.84480673]
[1731005095075,3.78309956,196.68,196.62,17.84480673]
[1731005095283,17.84480673,196.68,196.61,17.84480673]
[1731005095775,1.92629512,196.69,196.66,17.84480673]
[1731005095999,1.92629512,196.69,196.64,17.84480673]
[1731005096274,1.92629512,196.69,196.63,17.84480673]
[1731005096483,17.84480673,196.68,196.61,17.84480673]
[1731005096659,19.77110185,196.69,196.62,17.84480673]
[1731005097061,17.84480673,196.68,196.61,17.84480673]
[1731005097665,19.77110185,196.69,196.62,17.84480673]
[1731005097872,17.84480673,196.68,196.62,17.84480673]
[1731005098289,17.84480673,196.68,196.61,17.84480673]
[1731005098576,17.84480673,196.67,196.61,17.84480673]
[1731005098969,17.84480673,196.68,196.61,17.84480673]
[1731005099368,17.84480673,196.67,196.6,17.84480673]
[1731005099571,17.84480673,196.66,196.59,17.84480673]
[1731005100281,17.84480673,196.67,196.6,17.84480673]
[1731005100585,17.84480673,196.67,196.57,0.12549]
[1731005100586,17.84480673,196.68,196.61,17.84480673]
[1731005100782,17.84480673,196.67,196.6,17.84480673]
[1731005102780,17.84480673,196.66,196.6,17.84480673]
[1731005103372,17.84480673,196.65,196.59,17.84480673]
[1731005103791,0.5702591,196.69,196.67,0.12549]
[1731005104095,21.79148773,196.87,196.69,44.002374]
[1731005104274,3.946681,196.87,196.81,17.84480673]
[1731005104580,21.79148773,196.87,196.8,17.84480673]
[1731005104781,17.84480673,196.86,196.8,17.84480673]
[1731005105158,17.84480673,196.85,196.78,17.84480673]
[1731005105381,3.946681,196.87,196.83,11.84480673]
[1731005105582,3.946681,196.87,196.75,7.44139331]
[1731005105583,21.79148773,196.87,196.8,17.84480673]
[1731005105779,17.84480673,196.86,196.79,17.84480673]
[1731005106365,17.84480673,196.84,196.76,20.0]
[1731005106565,17.84480673,196.85,196.78,17.84480673]
[1731005107187,17.84480673,196.85,196.79,17.84480673]
[1731005107493,3.946681,196.87,196.81,17.84480673]
[1731005107665,3.946681,196.87,196.76,20.0]
[1731005107666,21.79148773,196.87,196.8,17.84480673]
[1731005107870,17.84480673,196.86,196.8,17.84480673]
[1731005108078,17.84480673,196.85,196.8,20.0]
[1731005108385,17.84480673,196.84,196.78,17.84480673]
[1731005108587,17.84480673,196.85,196.78,17.84480673]
[1731005109067,17.84480673,196.84,196.78,20.12549]
[1731005109467,17.84480673,196.84,196.78,37.97029673]
[1731005109986,17.84480673,196.84,196.78,0.12549]
[1731005110473,17.84480673,196.83,196.78,0.12549]
[1731005110683,17.84480673,196.83,196.77,20.0]
[1731005110871,17.84480673,196.81,196.77,20.0]
[1731005111075,17.84480673,196.81,196.76,20.0]
[1731005111473,17.84480673,196.83,196.77,0.12549]
[1731005111781,17.84480673,196.84,196.77,37.97029673]
[1731005112861,3.946681,196.87,196.77,37.97029673]
[1731005112862,17.84480673,196.83,196.77,20.12549]
[1731005113067,17.84480673,196.82,196.76,20.12549]
[1731005113967,17.84480673,196.81,196.76,20.12549]
[1731005114301,17.84480673,196.83,196.76,20.12549]
[1731005114585,17.84480673,196.83,196.77,20.0]
[1731005115574,17.84480673,196.84,196.78,0.12549]
[1731005115776,17.84480673,196.85,196.8,0.12549]
[1731005115972,3.946681,196.87,196.8,0.12549]
[1731005115973,17.84480673,196.86,196.8,0.12549]
[1731005116171,17.84480673,196.86,196.8,17.97029673]
[1731005116472,3.946681,196.87,196.83,37.84480673]
[1731005116787,21.79148773,196.87,196.83,20.0]
[1731005117087,21.79148773,196.87,196.82,0.12549]
[1731005117088,21.79148773,196.87,196.81,20.12549]
[1731005117579,3.946681,196.87,196.81,37.97029673]
[1731005117969,3.946681,196.87,196.83,20.12549]
[1731005118171,3.946681,196.87,196.83,37.84480673]
[1731005118485,3.946681,196.87,196.84,0.12549]
[1731005118687,3.946681,196.87,196.86,0.12549]
[1731005120395,3.83913552,196.87,196.86,69.47640895]
[1731005120692,3.83913552,196.87,196.86,27.62922822]
[1731005120893,3.83913552,196.87,196.84,20.0]
[1731005121187,3.83913552,196.87,196.86,37.84480673]
[1731005121572,3.83913552,196.87,196.86,37.97029673]
[1731005122379,3.83913552,196.87,196.86,61.84718073]
[1731005122572,3.83913552,196.87,196.86,61.74718073]
[1731005122766,3.83913552,196.87,196.86,63.18861018]
[1731005123196,3.83913552,196.87,196.86,83.55429508]
[1731005123373,0.5702591,196.89,196.88,79.69198746]
[1731005123574,0.5702591,196.89,196.88,68.48553741]
[1731005123777,0.5702591,196.89,196.88,68.38553741]
[1731005124569,0.5702591,196.89,196.88,76.01476563]
[1731005124776,0.5702591,196.89,196.88,24.48316341]
[1731005125171,0.5702591,196.89,196.88,17.84480673]
[1731005125483,0.5702591,196.89,196.88,17.97029673]
[1731005125675,0.5702591,196.89,196.88,17.84480673]
[1731005126071,0.5702591,196.89,196.88,37.84480673]
[1731005126494,0.5702591,196.89,196.88,37.97029673]
[1731005126674,0.5702591,196.89,196.88,45.59952495]
[1731005128696,0.5702591,196.89,196.88,69.37640895]
[1731005130093,0.5702591,196.89,196.88,45.59952495]
[1731005130594,0.5702591,196.89,196.85,1.34449132]
[1731005130797,0.5702591,196.89,196.86,17.84480673]
[1731005131006,0.5702591,196.89,196.85,17.84480673]
[1731005131190,0.5702591,196.89,196.8,31.30608528]
[1731005131191,0.5702591,196.89,196.86,17.84480673]
[1731005131501,0.5702591,196.89,196.87,17.84480673]
[1731005131880,0.5702591,196.89,196.86,20.0]
[1731005132081,0.0702591,196.89,196.86,20.0]
[1731005132498,0.0702591,196.89,196.86,27.62922822]
[1731005132799,0.0702591,196.89,196.86,45.47403495]
[1731005133300,0.0702591,196.89,196.88,37.97029673]
[1731005133480,0.0702591,196.89,196.88,45.59952495]
[1731005134402,0.0702591,196.89,196.88,7.62922822]
[1731005134604,0.0702591,196.89,196.86,17.84480673]
[1731005134790,0.0702591,196.89,196.88,17.84480673]
[1731005134992,0.0702591,196.89,196.88,45.59952495]
[1731005135198,0.0702591,196.89,196.88,27.62922822]
[1731005135700,0.0702591,196.89,196.88,45.47403495]
[1731005135901,0.0702591,196.89,196.88,45.59952495]
[1731005136491,0.0702591,196.89,196.88,69.37640895]
[1731005137687,0.0702591,196.89,196.88,45.59952495]
[1731005137887,0.0702591,196.89,196.88,69.37640895]
[1731005138595,41.84480673,197.0,196.93,0.1]
[1731005138596,24.0,197.0,196.93,0.1]
[1731005138801,15.29195623,197.0,196.99,37.84480673]
[1731005139008,15.29195623,197.0,196.99,69.37640895]
[1731005139480,15.29195623,197.0,196.99,45.59952495]
[1731005139886,15.29195623,197.0,196.99,45.47403495]
[1731005140401,15.29195623,197.0,196.99,69.37640895]
[1731005141707,15.29195623,197.0,196.99,75.70348785]
[1731005142411,15.29195623,197.0,196.99,75.80348785]
[1731005142613,15.29195623,197.0,196.99,57.85868112]
[1731005142786,15.29195623,197.0,196.99,75.70348785]
[1731005143487,15.29195623,197.0,196.99,93.64829458]
[1731005145116,15.16655623,197.0,196.99,93.64829458]
[1731005145409,0.5702591,197.08,197.05,0.1]
[1731005145702,0.5702591,197.08,197.07,37.97029673]
[1731005146004,0.5702591,197.08,197.07,45.59952495]
[1731005146418,0.5702591,197.08,197.07,52.02660385]
[1731005146908,0.5702591,197.08,197.07,34.08179712]
[1731005147097,0.5702591,197.08,197.07,51.92660385]
[1731005147688,0.5702591,197.08,197.07,53.28658812]
[1731005147901,0.5702591,197.08,197.07,51.92660385]
[1731005148105,0.5702591,197.08,197.07,13.95630712]
[1731005150199,0.5702591,197.08,197.05,37.84480673]
[1731005150595,0.5702591,197.08,197.06,17.84480673]
[1731005150908,0.5702591,197.08,197.05,20.0]
[1731005151418,0.5702591,197.08,197.05,17.84480673]
[1731005152314,0.5702591,197.08,197.03,17.84480673]
[1731005152491,18.41506583,197.08,197.01,17.84480673]
[1731005153000,0.5702591,197.08,197.02,17.84480673]
[1731005153389,18.41506583,197.08,197.01,17.84480673]
[1731005153590,0.5702591,197.08,197.05,17.84480673]
[1731005153786,0.5702591,197.08,197.06,25.47403495]
[1731005154411,0.5702591,197.08,197.06,17.84480673]
[1731005154602,0.5702591,197.08,197.05,17.84480673]
[1731005154793,0.5702591,197.08,197.07,17.84480673]
[1731005154994,0.5702591,197.08,197.07,17.97029673]
[1731005155897,0.5702591,197.08,197.07,45.59952495]
[1731005157504,0.5702591,197.08,197.07,45.69952495]
[1731005158904,0.5702591,197.08,197.07,45.59952495]
[1731005159111,0.5702591,197.08,197.07,45.47403495]
[1731005159294,0.5702591,197.08,197.07,46.82195401]
[1731005159500,0.5702591,197.08,197.07,46.94744401]
[1731005159717,1.5702591,197.08,197.07,46.94744401]
[1731005159924,1.5702591,197.08,197.07,46.82195401]
[1731005160599,1.5702591,197.08,197.07,46.94744401]
[1731005160796,15.59779529,197.16,197.08,20.22549]
[1731005161097,17.84480673,197.14,197.08,20.0]
[1731005161426,15.59779529,197.16,197.02,5.9760789]
[1731005161721,17.84480673,197.13,197.06,17.84480673]
[1731005161918,17.84480673,197.12,197.05,25.47403495]
[1731005162109,17.84480673,197.13,197.06,17.84480673]
[1731005163017,15.59779529,197.16,197.08,17.84480673]
[1731005163198,15.59779529,197.16,197.09,25.47403495]
[1731005163399,17.84480673,197.15,197.08,17.84480673]
[1731005163616,17.84480673,197.12,197.05,20.12549]
[1731005163817,17.84480673,197.12,197.05,20.0]
[1731005164019,17.84480673,197.12,197.05,37.84480673]
[1731005164210,15.59779529,197.16,197.05,37.84480673]
[1731005164211,33.44260202,197.16,197.09,17.84480673]
[1731005164411,15.59779529,197.16,197.1,17.84480673]
[1731005164616,15.59779529,197.16,197.1,25.47403495]
[1731005164825,15.59779529,197.16,197.1,17.84480673]
[1731005165025,15.59779529,197.16,197.12,17.84480673]
[1731005168305,17.84480673,197.13,197.06,17.84480673]
[1731005168504,17.84480673,197.12,197.06,17.84480673]
[1731005168722,17.84480673,197.12,197.05,17.84480673]
[1731005168935,17.84480673,197.09,197.03,17.84480673]
[1731005169398,17.84480673,197.1,197.03,17.84480673]
[1731005169603,24.48890673,197.11,197.04,17.84480673]
[1731005170325,6.6441,197.11,197.06,17.84480673]
[1731005170503,6.6441,197.11,197.07,17.84480673]
[1731005170699,17.84480673,197.14,197.07,25.47403495]
[1731005170941,17.84480673,197.15,197.09,17.84480673]
[1731005171104,39.31032553,197.16,197.09,17.84480673]
[1731005171616,15.4221188,197.16,197.13,17.84480673]
[1731005171814,15.4221188,197.16,197.11,37.84480673]
[1731005172014,15.4221188,197.16,197.11,20.0]
[1731005172204,15.4221188,197.16,197.1,17.84480673]
[1731005172401,15.4221188,197.16,197.11,17.84480673]
[1731005173022,33.26692553,197.16,197.09,17.84480673]
[1731005173229,17.84480673,197.14,197.06,7.9694966]
[1731005173530,17.84480673,197.14,197.07,17.84480673]
[1731005174133,17.84480673,197.15,197.08,17.84480673]
[1731005174308,17.84480673,197.14,197.07,17.84480673]
[1731005175136,17.84480673,197.15,197.08,17.84480673]
[1731005175506,15.4221188,197.16,197.1,17.84480673]
[1731005175726,17.84480673,197.15,197.08,17.84480673]
[1731005175932,33.26692553,197.16,197.09,17.84480673]
[1731005176128,15.4221188,197.16,197.1,17.84480673]
[1731005176315,15.4221188,197.16,197.11,17.84480673]
[1731005176619,0.0986188,197.16,197.13,17.84480673]
[1731005181437,0.0986188,197.16,197.14,0.12549]
[1731005181639,0.0986188,197.16,197.15,17.97029673]
[1731005182917,0.0986188,197.16,197.15,37.97029673]
[1731005183114,0.0986188,197.16,197.15,45.69952495]
[1731005183322,0.5702591,197.28,197.18,20.12549]
[1731005183523,0.5702591,197.28,197.21,17.84480673]
[1731005183524,17.84480673,197.27,197.21,17.84480673]
[1731005184034,17.84480673,197.27,197.19,7.62922822]
[1731005184035,0.5702591,197.28,197.22,17.84480673]
[1731005184222,0.5702591,197.28,197.23,0.12549]
[1731005184417,0.5702591,197.28,197.27,61.84718073]
[1731005184614,0.5702591,197.28,197.27,69.47640895]
[1731005184815,0.5702591,197.28,197.27,69.37640895]
[1731005185215,0.5702591,197.28,197.27,69.47640895]
[1731005185537,17.84480673,197.43,197.31,0.1]
[1731005185833,17.84480673,197.4,197.32,17.84480673]
[1731005186128,3.01005302,197.39,197.33,0.12549]
[1731005186326,17.84480673,197.42,197.35,17.84480673]
[1731005186526,17.84480673,197.41,197.33,17.84480673]
[1731005186730,17.84480673,197.4,197.33,17.84480673]
[1731005186929,17.84480673,197.4,197.32,17.84480673]
[1731005187111,17.84480673,197.41,197.33,17.97029673]
[1731005187635,17.84480673,197.41,197.28,20.0]
[1731005187636,28.30820159,197.38,197.31,28.30820159]
[1731005187813,28.30820159,197.37,197.3,28.30820159]
[1731005188015,0.50674837,197.44,197.29,28.30820159]
[1731005188016,28.30820159,197.36,197.29,28.30820159]
[1731005188216,28.40820159,197.34,197.27,28.30820159]
[1731005188539,28.30820159,197.33,197.26,28.30820159]
[1731005189036,28.30820159,197.34,197.27,28.30820159]
[1731005189231,28.30820159,197.33,197.26,28.30820159]
[1731005189811,28.30820159,197.32,197.25,28.30820159]
[1731005190035,16.1161,197.4,197.3,28.30820159]
[1731005190334,28.30820159,197.35,197.28,28.30820159]
[1731005191414,28.30820159,197.34,197.27,28.30820159]
[1731005191924,28.30820159,197.33,197.25,28.30820159]
[1731005192237,28.30820159,197.33,197.26,28.30820159]
[1731005192415,0.1,197.43,197.29,28.30820159]
[1731005192623,15.4908,197.45,197.35,0.12549]
[1731005192832,15.4908,197.45,197.3,55.93742981]
[1731005192833,28.30820159,197.4,197.32,28.30820159]
[1731005193034,28.30820159,197.39,197.31,28.30820159]
[1731005194232,0.50674837,197.44,197.35,28.30820159]
[1731005194530,28.30820159,197.43,197.35,28.30820159]
[1731005194936,22.30820159,197.43,197.35,28.30820159]
[1731005195641,22.30820159,197.43,197.36,0.12549]
[1731005195837,28.30820159,197.41,197.33,28.30820159]
[1731005196140,28.30820159,197.37,197.29,28.30820159]
[1731005196438,28.30820159,197.39,197.32,0.12549]
[1731005196614,28.30820159,197.41,197.33,28.30820159]
[1731005196822,28.30820159,197.41,197.34,0.12549]
[1731005197238,28.30820159,197.41,197.34,20.12549]
[1731005197915,28.30820159,197.39,197.31,28.30820159]
[1731005198220,28.30820159,197.39,197.32,0.12549]
[1731005198623,28.30820159,197.39,197.31,28.30820159]
[1731005198834,28.30820159,197.39,197.33,28.30820159]
[1731005199017,28.30820159,197.39,197.34,0.12549]
[1731005200237,28.30820159,197.39,197.31,28.30820159]
[1731005203514,28.30820159,197.37,197.29,28.30820159]
[1731005203714,28.30820159,197.35,197.29,28.30820159]
[1731005204524,15.8523,197.36,197.29,28.30820159]
[1731005205042,44.16050159,197.36,197.28,28.30820159]
[1731005205246,44.16050159,197.36,197.25,0.12549]
[1731005205247,15.8523,197.36,197.29,28.30820159]
[1731005205817,44.16050159,197.36,197.29,28.30820159]
[1731005206038,15.8523,197.36,197.29,28.30820159]
[1731005206423,44.16050159,197.36,197.3,0.12549]
[1731005206638,15.8523,197.36,197.3,28.30820159]
[1731005206942,15.8523,197.36,197.31,28.30820159]
[1731005207148,28.30820159,197.39,197.32,0.12549]
[1731005207532,44.96300159,197.41,197.32,0.12549]
[1731005207718,44.96300159,197.41,197.3,20.12549]
[1731005208025,44.96300159,197.41,197.29,7.62922822]
[1731005208026,44.96300159,197.41,197.33,20.12549]
[1731005208551,44.96300159,197.41,197.33,28.43369159]
[1731005210025,28.30820159,197.4,197.32,28.30820159]
[1731005210239,28.30820159,197.4,197.33,0.12549]
[1731005210646,44.96300159,197.41,197.33,28.43369159]
[1731005211233,44.96300159,197.41,197.3,20.0]
[1731005211234,16.6548,197.41,197.36,0.12549]
[1731005211543,16.6548,197.41,197.34,17.68389331]
[1731005211544,17.68389331,197.41,197.34,17.68389331]
[1731005211738,17.68389331,197.41,197.35,0.12549]
[1731005211943,17.68389331,197.42,197.35,17.68389331]
[1731005212119,17.68389331,197.4,197.33,17.68389331]
[1731005212325,17.68389331,197.38,197.31,17.68389331]
[1731005212737,17.68389331,197.4,197.32,17.68389331]
[1731005213041,17.68389331,197.4,197.33,17.68389331]
[1731005213448,20.50674837,197.44,197.35,17.68389331]
[1731005213738,17.68389331,197.42,197.36,0.12549]
[1731005214145,0.50674837,197.44,197.35,0.12549]
[1731005214328,17.68389331,197.43,197.35,0.12549]
[1731005215137,17.68389331,197.42,197.36,0.12549]
[1731005215333,0.50674837,197.44,197.38,20.12549]
[1731005215534,18.19064168,197.44,197.38,20.12549]
[1731005215740,17.68389331,197.43,197.35,17.68389331]
[1731005215937,17.68389331,197.43,197.36,20.0]
[1731005216130,0.50674837,197.44,197.36,0.12549]
[1731005216131,17.68389331,197.42,197.36,0.12549]
[1731005217145,17.68389331,197.42,197.34,17.80938331]
[1731005217329,17.68389331,197.42,197.36,0.12549]
[1731005217955,17.68389331,197.43,197.36,0.12549]
[1731005218349,18.19064168,197.44,197.36,17.68389331]
[1731005218651,17.68389331,197.42,197.33,1.34634926]
[1731005218839,17.68389331,197.42,197.34,17.68389331]
[1731005219032,17.68389331,197.42,197.35,0.12549]
[1731005219828,17.68389331,197.42,197.34,17.68389331]
[1731005220837,0.50674837,197.44,197.38,0.12549]
[1731005221152,18.19064168,197.44,197.35,37.68389331]
[1731005221552,18.19064168,197.44,197.36,0.12549]
[1731005221856,18.19064168,197.44,197.43,37.80938331]
[1731005221857,0.50674837,197.44,197.43,37.80938331]
[1731005222048,0.50674837,197.44,197.43,45.29166793]
[1731005222457,0.50674837,197.44,197.43,45.16617793]
[1731005222641,0.50674837,197.44,197.43,25.16617793]
[1731005223048,0.50674837,197.44,197.43,17.68389331]
[1731005223243,0.50674837,197.44,197.43,17.80938331]
[1731005223551,0.50674837,197.44,197.43,45.31312153]
[1731005223754,0.50674837,197.44,197.43,37.68389331]
[1731005224242,0.50674837,197.44,197.43,37.80938331]
[1731005224444,0.50674837,197.44,197.43,0.12549]
[1731005224767,0.50674837,197.44,197.43,37.80938331]
[1731005226356,0.50674837,197.44,197.42,17.68389331]
[1731005226537,0.50674837,197.44,197.41,17.68389331]
[1731005226932,0.50674837,197.44,197.39,17.68389331]
[1731005227330,18.19064168,197.44,197.34,7.48228462]
[1731005227544,18.19064168,197.44,197.38,17.68389331]
[1731005228256,22.7806,197.43,197.35,0.12549]
[1731005228554,22.7806,197.43,197.37,17.68389331]
[1731005229743,40.46449331,197.43,197.37,17.68389331]
[1731005230135,17.68389331,197.42,197.35,17.68389331]
[1731005230339,22.7806,197.43,197.35,17.68389331]
[1731005230340,17.68389331,197.41,197.35,17.68389331]
[1731005230732,22.7806,197.43,197.37,17.68389331]
[1731005230950,40.46449331,197.43,197.36,7.48228462]
[1731005231138,40.46449331,197.43,197.36,17.68389331]
[1731005231450,17.68389331,197.42,197.36,17.68389331]
[1731005231648,40.46449331,197.43,197.36,17.68389331]
[1731005232037,40.46449331,197.43,197.37,17.68389331]
[1731005232449,40.46449331,197.43,197.33,0.12549]
[1731005232450,40.46449331,197.43,197.36,17.68389331]
[1731005233045,0.50674837,197.44,197.42,17.68389331]
[1731005233243,0.50674837,197.44,197.43,17.68389331]
[1731005233657,0.50674837,197.44,197.38,0.12549]
[1731005233839,0.50674837,197.44,197.42,17.68389331]
[1731005234035,0.50674837,197.44,197.4,17.68389331]
[1731005234247,0.50674837,197.44,197.39,17.68389331]
[1731005234564,0.50674837,197.44,197.33,5.56719687]
[1731005234565,0.50674837,197.44,197.42,17.68389331]
[1731005235257,0.50674837,197.44,197.41,17.68389331]
[1731005236573,0.50674837,197.44,197.43,17.68389331]
[1731005237637,0.50674837,197.44,197.43,41.46077731]
[1731005238263,0.50674837,197.44,197.43,23.776884]
[1731005238562,0.50674837,197.44,197.43,41.46077731]
[1731005238771,10.06871878,197.46,197.28,0.1]
[1731005239068,17.68389331,197.43,197.36,17.68389331]
[1731005239242,17.68389331,197.44,197.37,17.68389331]
[1731005240162,20.13743678,197.46,197.36,17.68389331]
[1731005240163,17.68389331,197.43,197.36,17.68389331]
[1731005240376,17.68389331,197.41,197.29,7.07061795]
[1731005240544,17.68389331,197.43,197.36,17.68389331]
[1731005240876,17.68389331,197.44,197.37,17.68389331]
[1731005241165,17.68389331,197.45,197.38,17.68389331]
[1731005241336,17.68389331,197.45,197.31,0.12549]
[1731005241337,37.82133009,197.46,197.39,17.68389331]
[1731005241540,20.13743678,197.46,197.4,17.68389331]
[1731005241739,10.06871878,197.46,197.4,17.68389331]
[1731005241958,27.75261209,197.46,197.4,0.12549]
[1731005242165,10.06871878,197.46,197.41,17.68389331]
[1731005242351,10.06871878,197.46,197.42,23.776884]
[1731005243665,10.06871878,197.46,197.44,17.68389331]
[1731005243843,10.06871878,197.46,197.42,41.46077731]
[1731005244163,10.06871878,197.46,197.41,23.776884]
[1731005244351,10.06871878,197.46,197.36,43.776884]
[1731005244541,10.06871878,197.46,197.41,17.68389331]
[1731005244746,27.75261209,197.46,197.4,17.68389331]
[1731005245066,17.68389331,197.45,197.38,17.68389331]
[1731005245646,17.68389331,197.44,197.37,17.68389331]
[1731005246165,17.68389331,197.43,197.38,0.12549]
[1731005246479,17.68389331,197.45,197.39,17.68389331]
[1731005246762,27.75261209,197.46,197.4,17.68389331]
[1731005247140,27.75261209,197.46,197.39,17.68389331]
[1731005247345,17.68389331,197.45,197.39,17.68389331]
[1731005247545,10.06871878,197.46,197.39,17.68389331]
[1731005247546,27.75261209,197.46,197.39,17.68389331]
[1731005247940,27.75261209,197.46,197.4,23.776884]
[1731005248747,10.06871878,197.46,197.4,41.46077731]
[1731005249244,27.75261209,197.46,197.4,23.776884]
[1731005249460,17.68389331,197.45,197.39,23.776884]
[1731005249761,17.68389331,197.44,197.39,23.776884]
[1731005249973,17.68389331,197.45,197.39,23.776884]
[1731005250149,17.68389331,197.45,197.32,20.0]
[1731005250340,17.68389331,197.44,197.37,17.68389331]
[1731005250952,17.68389331,197.45,197.39,17.68389331]
[1731005251663,10.06871878,197.46,197.4,17.68389331]
[1731005251868,10.06871878,197.46,197.41,17.68389331]
[1731005252044,10.06871878,197.46,197.4,17.68389331]
[1731005252244,10.06871878,197.46,197.41,41.46077731]
[1731005252444,10.06871878,197.46,197.42,17.68389331]
[1731005252740,10.06871878,197.46,197.43,17.68389331]
[1731005252945,10.06871878,197.46,197.41,23.776884]
[1731005252946,10.06871878,197.46,197.42,17.68389331]
[1731005253246,10.06871878,197.46,197.41,41.46077731]
[1731005253452,10.06871878,197.46,197.42,17.68389331]
[1731005253770,10.06871878,197.46,197.45,41.58626731]
[1731005255551,10.06871878,197.46,197.45,61.58626731]
[1731005255755,10.06871878,197.46,197.45,68.79660664]
[1731005256273,10.06871878,197.46,197.45,61.58626731]
[1731005256854,10.06871878,197.46,197.45,61.46077731]
[1731005257265,10.06871878,197.46,197.45,61.58626731]
[1731005258051,10.06871878,197.46,197.45,17.68389331]
[1731005258266,10.06871878,197.46,197.44,17.68389331]
[1731005258565,10.06871878,197.46,197.42,17.68389331]
[1731005258955,10.06871878,197.46,197.43,17.68389331]
[1731005259251,10.06871878,197.46,197.45,17.68389331]
[1731005260172,10.06871878,197.46,197.43,7.07061795]
[1731005260344,10.06871878,197.46,197.44,17.68389331]